[Event "1st Bangalore GM-Open-A 2024"]
[Site "Bangalore"]
[Date "2024.01.19"]
[Round "2.38"]
[White "Omidi, Arya"]
[Black "Sriram Adarsh Uppala"]
[Result "1-0"]
[ECO "B30"]
[WhiteElo "2301"]
[BlackElo "1900"]
[Annotator "RC"]
[PlyCount "175"]
[EventDate "2024.01.20"]
[EventType "swiss"]
[EventCountry "IND"]
[SourceTitle "playchess.com"]
[Source "ChessBase"]
[SourceQuality "1"]
[TimeControl "5400+30"]

1. e4 {[%emt 0:00:02]} c5 {[%emt 0:00:19]} 2. Nf3 {[%emt 0:00:07]} Nc6 {[%emt 0:00:50]} 3. Bb5 {[%emt 0:00:08]} e6 {[%emt 0:00:19]} 4. O-O {[%emt 0:00:58]} Nge7 {[%emt 0:00:06]} 5. Re1 {[%emt 0:00:43]} Nd4 {[%emt 0:00:07]} 6. Nxd4 {[%emt 0:04:01]} cxd4 {[%emt 0:00:13]} 7. c3 {[%emt 0:00:40]} a6 {[%emt 0:01:15]} 8. Bf1 {[%emt 0:04:05]} Nc6 {[%emt 0:00:06]} 9. b4 {[%emt 0:08:28]} Bd6 {[%emt 0:01:33]} 10. Na3 {[%emt 0:03:24]} b5 {[%emt 0:08:11]} 11. Nc2 {[%emt 0:02:53]} Be5 {[%emt 0:04:46]} 12. Bb2 {[%emt 0:02:28]} Qf6 {[%emt 0:01:41]} 13. a4 {[%emt 0:02:09]} Rb8 {[%emt 0:07:45]} 14. axb5 {[%emt 0:00:52]} axb5 {[%emt 0:00:11]} 15. cxd4 {[%emt 0:08:42]} Nxd4 {[%emt 0:00:47]} 16. Bxd4 {[%emt 0:00:34]} Bxd4 {[%emt 0:00:07]} 17. Nxd4 {[%emt 0:00:03]} Qxd4 {[%emt 0:00:08]} 18. Qc2 {[%emt 0:00:17]} O-O {[%emt 0:25:27]} 19. Qc3 {[%emt 0:00:13]} Qxc3 {[%emt 0:07:09]} 20. dxc3 {[%emt 0:00:13]} d5 {[%emt 0:00:09]} 21. exd5 {[%emt 0:03:24]} exd5 {[%emt 0:00:31]} 22. Ra5 {[%emt 0:02:34]} Bd7 {[%emt 0:03:54]} 23. Rd1 {[%emt 0:05:17]} Bc6 {[%emt 0:01:39]} 24. f3 {[%emt 0:00:13]} Rfd8 {[%emt 0:01:43]} 25. Kf2 {[%emt 0:00:30]} Be8 {[%emt 0:01:38]} 26. Ke3 {[%emt 0:07:53]} Rbc8 {[%emt 0:00:24]} 27. Ra3 {[%emt 0:00:19]} Kf8 {[%emt 0:00:57]} 28. Rd2 {[%emt 0:01:26]} Rc7 {[%emt 0:06:09]} 29. Kd4 {[%emt 0:04:10]} Rdc8 {[%emt 0:02:08]} 30. Rda2 {[%emt 0:01:22]} g5 {[%emt 0:02:02]} 31. Ra1 {[%emt 0:01:20]} Kg7 {[%emt 0:02:13]} 32. Re1 {[%emt 0:00:59]} Kf6 {[%emt 0:01:13]} 33. Ra6+ {[%emt 0:00:25]} Kg7 {[%emt 0:00:21]} 34. Re3 {[%emt 0:01:49]} Bd7 {[%emt 0:02:27]} 35. Rd6 {[%emt 0:04:10]} Bc6 {[%emt 0:00:33]} 36. Bd3 {[%emt 0:02:59]} Ra8 {[%emt 0:00:54]} 37. Re2 {[%emt 0:01:48]} Ra1 {[%emt 0:00:51]} 38. Bc2 {[%emt 0:09:51]} Bb7 {[%emt 0:02:00]} 39. Rb6 {[%emt 0:02:14]} Rc4+ {[%emt 0:02:26]} 40. Ke5 {[%emt 0:00:23]} Bc6 {[%emt 0:01:21]} 41. Kd6 {[%emt 0:00:42]} Ba8 {[%emt 0:00:04]} 42. Bd3 {[%emt 0:02:17]} Rxc3 {[%emt 0:00:34]} 43. Bxb5 {[%emt 0:00:01]} d4 {[%emt 0:01:38]} 44. Rd2 {[%emt 0:00:31]} Re1 {[%emt 0:00:26]} 45. Kd7 {[%emt 0:01:31]} Rce3 {[%emt 0:02:32]} 46. Rxd4 {[%emt 0:00:44]} Re7+ {[%emt 0:01:15]} 47. Kc8 {[%emt 0:00:41]} Ra1 {[%emt 0:01:27]} 48. Bd7 {[%emt 0:00:47]} h5 {[%emt 0:01:01]} 49. b5 {[%emt 0:00:21]} Re2 {[%emt 0:01:00]} 50. Bc6 {[%emt 0:06:00]} Rxg2 {[%emt 0:00:07]} 51. h3 {[%emt 0:01:43]} Rc2 {[%emt 0:00:33]} 52. Rd7 {[%emt 0:01:52]} Rac1 {[%emt 0:00:23]} 53. Rc7 {[%emt 0:00:00]} Ra1 {[%emt 0:03:34]} 54. Rb8 {[%emt 0:00:47]} Bxc6 {[%emt 0:00:16]} 55. Rxc6 {[%emt 0:00:50]} Rb2 {[%emt 0:00:48]} 56. b6 {[%emt 0:00:46]} Ra3 {[%emt 0:00:19]} 57. Rc5 {[%emt 0:01:18]} Kg6 {[%emt 0:00:22]} 58. Kc7 {[%emt 0:00:27]} Rxf3 {[%emt 0:01:28]} 59. b7 {[%emt 0:01:54]} Rxh3 {[%emt 0:01:04]} 60. Rg8+ {[%emt 0:00:22]} Kf6 {[%emt 0:00:21]} 61. b8=Q {[%emt 0:00:22]} Rxb8 {[%emt 0:00:04]} 62. Rxb8 {[%emt 0:00:02]} Rg3 {[%emt 0:02:01]} 63. Rb6+ {[%emt 0:00:45]} Kg7 {[%emt 0:00:05]} 64. Kd6 {[%emt 0:00:20]} h4 {[%emt 0:00:34]} 65. Ke5 {[%emt 0:00:29]} h3 {[%emt 0:00:17]} 66. Rc1 {[%emt 0:00:13]} Rf3 {[%emt 0:02:03]} 67. Rbb1 {[%emt 0:01:55]} Kg6 {[%emt 0:00:24]} 68. Rf1 {[%emt 0:00:17]} Re3+ {[%emt 0:00:32]} 69. Kd4 {[%emt 0:00:02]} Re7 {[%emt 0:00:22]} 70. Rbe1 {[%emt 0:00:08]} Ra7 {[%emt 0:01:01]} 71. Ke3 {[%emt 0:00:31]} f5 {[%emt 0:00:48]} 72. Kf2 {[%emt 0:00:07]} Kh5 {[%emt 0:00:31]} 73. Kg3 {[%emt 0:01:15]} Ra3+ {[%emt 0:00:05]} 74. Kh2 {[%emt 0:00:58]} f4 {[%emt 0:00:30]} 75. Ra1 {[%emt 0:00:02]} Rb3 {[%emt 0:00:24]} 76. Rab1 {[%emt 0:00:03]} Rd3 {[%emt 0:00:17]} 77. Rfd1 {[%emt 0:00:48]} Rc3 {[%emt 0:00:06]} 78. Rdc1 {[%emt 0:00:04]} Rd3 {[%emt 0:00:04]} 79. Rd1 {[%emt 0:01:00]} Rc3 {[%emt 0:00:05]} 80. Rbc1 {[%emt 0:00:16]} Rb3 {[%emt 0:00:05]} 81. Rc2 {[%emt 0:01:10]} Kh4 {[%emt 0:00:47]} 82. Rd8 {[%emt 0:00:10]} Kg4 {[%emt 0:00:26]} 83. Rcd2 {[%emt 0:00:33]} Re3 {[%emt 0:02:11]} 84. R8d3 {[%emt 0:01:04]} Re4 {[%emt 0:00:58]} 85. Rxh3 {[%emt 0:00:40]} f3 {[%emt 0:00:06]} 86. Rf2 {[%emt 0:00:35]} Re3 {[%emt 0:00:21]} 87. Rg3+ {[%emt 0:00:09]} Kf4 {[%emt 0:00:07]} 88. Kh3 {[%emt 0:00:15]} 1-0

[Event "1st Bangalore GM-Open-A 2024"]
[Site "Bangalore"]
[Date "2024.01.19"]
[Round "2.39"]
[White "Jaiveer Mahendru"]
[Black "Uddipan Roy"]
[Result "1-0"]
[ECO "B90"]
[WhiteElo "2294"]
[BlackElo "1862"]
[Annotator "RC"]
[PlyCount "81"]
[EventDate "2024.01.20"]
[EventType "swiss"]
[EventCountry "IND"]
[SourceTitle "playchess.com"]
[Source "ChessBase"]
[SourceQuality "1"]
[TimeControl "5400+30"]

1. e4 {[%emt 0:01:07]} c5 {[%emt 0:02:51]} 2. Nf3 {[%emt 0:00:09]} d6 {[%emt 0:00:15]} 3. d4 {[%emt 0:00:03]} cxd4 {[%emt 0:00:07]} 4. Nxd4 {[%emt 0:00:03]} Nf6 {[%emt 0:00:07]} 5. Nc3 {[%emt 0:00:02]} a6 {[%emt 0:00:06]} 6. Be3 {[%emt 0:00:03]} e5 {[%emt 0:00:06]} 7. Nb3 {[%emt 0:00:04]} Be7 {[%emt 0:00:14]} 8. h3 {[%emt 0:00:03]} h5 {[%emt 0:07:06]} 9. Be2 {[%emt 0:00:32]} Nbd7 {[%emt 0:09:24]} 10. Qd2 {[%emt 0:00:08]} b5 {[%emt 0:00:26]} 11. a4 {[%emt 0:10:32]} b4 {[%emt 0:19:07]} 12. Nd5 {[%emt 0:00:05]} Bb7 {[%emt 0:03:29]} 13. Bf3 {[%emt 0:13:50]} Nxd5 {[%emt 0:14:27]} 14. exd5 {[%emt 0:00:01]} a5 {[%emt 0:00:02]} 15. O-O {[%emt 0:25:27]} f5 {[%emt 0:08:59]} 16. g3 {[%emt 0:21:21]} h4 {[%emt 0:10:13]} 17. Bg2 {[%emt 0:01:01]} O-O {[%emt 0:01:21]} 18. f4 {[%emt 0:09:59]} Ba6 {[%emt 0:11:14]} 19. Rfe1 {[%emt 0:02:47]} Bc4 {[%emt 0:03:43]} 20. fxe5 {[%emt 0:03:09]} Bxb3 {[%emt 0:00:08]} 21. e6 {[%emt 0:01:23]} Nf6 {[%emt 0:04:04]} 22. cxb3 {[%emt 0:00:11]} Nh5 {[%emt 0:02:30]} 23. Rac1 {[%emt 0:05:51]} hxg3 {[%emt 0:01:25]} 24. Bf3 {[%emt 0:00:01]} Qe8 {[%emt 0:00:33]} 25. Rc7 {[%emt 0:00:57]} f4 {[%emt 0:00:22]} 26. Bd4 {[%emt 0:01:25]} Rf5 {[%emt 0:00:36]} 27. Qc2 {[%emt 0:01:15]} Rg5 {[%emt 0:00:33]} 28. h4 {[%emt 0:00:38]} Re5 {[%emt 0:00:25]} 29. Bxe5 {[%emt 0:00:15]} dxe5 {[%emt 0:00:03]} 30. Rc1 {[%emt 0:01:32]} Nf6 {[%emt 0:00:36]} 31. Qf5 {[%emt 0:00:57]} Bd6 {[%emt 0:00:30]} 32. Rf7 {[%emt 0:00:33]} Rc8 {[%emt 0:00:06]} 33. Rc6 {[%emt 0:00:27]} Rxc6 {[%emt 0:01:19]} 34. dxc6 {[%emt 0:00:02]} Bc5+ {[%emt 0:00:31]} 35. Kh1 {[%emt 0:01:01]} Qd8 {[%emt 0:00:30]} 36. c7 {[%emt 0:00:44]} g2+ {[%emt 0:00:05]} 37. Kxg2 {[%emt 0:00:08]} Qd2+ {[%emt 0:00:26]} 38. Kh3 {[%emt 0:00:02]} Qe1 {[%emt 0:00:58]} 39. c8=Q+ {[%emt 0:00:08]} Ne8 {[%emt 0:00:03]} 40. Qxe8+ {[%emt 0:00:14]} Bf8 {[%emt 0:00:03]} 41. Qxf8# {[%emt 0:00:27]} 1-0

[Event "1st Bangalore GM-Open-A 2024"]
[Site "Bangalore"]
[Date "2024.01.19"]
[Round "2.40"]
[White "Mukund Hemant Agarwal"]
[Black "Lalit Babu M R"]
[Result "0-1"]
[ECO "C05"]
[WhiteElo "1852"]
[BlackElo "2525"]
[Annotator "TA"]
[PlyCount "70"]
[EventDate "2024.01.20"]
[EventType "swiss"]
[EventCountry "IND"]
[SourceTitle "playchess.com"]
[Source "ChessBase"]
[SourceQuality "1"]
[TimeControl "5400+30"]

{[%evp 14,70,20,22,38,26,21,0,0,-13,58,-58,-10,-74,-83,-64,-75,-101,46,49,31,-97,-93,-101,-71,-72,-81,-74,-53,-100,-102,-98,-107,-104,0,0,0,0,0,0,19,12,19,7,0,-2419,-2384,-2038,-2008,-1746,-877,-1217,-1169,-29981,-29982,-29992,-29993,-29993,-29994]} 1. e4 {[%emt 0:00:01]} e6 {[%emt 0:00:07]} 2. d4 {[%emt 0:00:11]} d5 {[%emt 0:00:05]} 3. Nd2 {[%emt 0:00:25]} Nf6 {[%emt 0:01:14]} 4. e5 {[%emt 0:00:07]} Nfd7 {[%emt 0:00:05]} 5. f4 {[%emt 0:01:23]} c5 {[%emt 0:00:22]} 6. c3 {[%emt 0:00:15]} Nc6 {[%emt 0:00:36]} 7. Ndf3 {[%emt 0:01:19]} Qb6 {[%emt 0:00:47]} 8. g3 {[%emt 0:00:35] [#]} Qa5 $146 {[%emt 0:10:10] C05: French Tarrasch: 3...Nf6 4 e5 Nfd7, 5 f4 and 5 Bd3 sidelines.} ({Predecessor:} 8... Be7 9. Ne2 a5 10. a3 a4 11. f5 Na5 12. Nf4 Nb3 13. Rb1 cxd4 14. cxd4 Nb8 15. Be3 Nc6 16. fxe6 Bxe6 17. Bd3 {0-1 Anton Guijarro,D (2627)-Kovalenko,I (2668) Eurasia Blitz Chess Cup 2016 (18)}) 9. Kf2 {[%emt 0:13:38]} b5 {[%emt 0:00:17][%cal Bb7b5,Bb5b4][%mdl 32]} 10. Bd3 {[%emt 0:04:37]} b4 {[%emt 0:04:43] The position is equal.} 11. Ne2 {[%emt 0:01:47]} Nb6 {[%emt 0:02:49]} (11... bxc3 $11 12. bxc3 Rb8) 12. g4 {[%emt 0:11:30]} (12. dxc5 $14 Bxc5+ 13. Kg2) 12... h5 {[%emt 0:10:00]} (12... bxc3 $15 13. bxc3 cxd4 14. Nexd4 Qxc3) 13. h3 {[%emt 0:06:00] [#]} (13. gxh5 $11 {keeps the balance.} bxc3 14. bxc3) 13... bxc3 $1 $17 {[%emt 0:09:03]} 14. bxc3 {[%emt 0:01:27]} Na4 $1 {[%emt 0:00:06]} 15. Rb1 {[%emt 0:28:16] Threatens to win with Bb5.} hxg4 {[%emt 0:03:15]} (15... Nxc3 $6 16. Nxc3 Qxc3 17. Bb5 $15) ({Black should play} 15... c4 $17 16. Bc2 Nxc3 17. Nxc3 hxg4 18. Nxd5 (18. Ba4 Bd7 $17) 18... exd5) 16. Rb5 $1 $14 {[%emt 0:12:41]} Qc7 {[%emt 0:00:50]} (16... Nxc3 17. Nxc3 Qxc3 18. Bb2 $16) 17. Qxa4 {[%emt 0:01:30]} (17. hxg4 Rxh1 18. Qxh1 Ba6 $15) (17. Ng5 $1 $14 {stays ahead.} g3+ 18. Kxg3) 17... gxf3 $17 {[%emt 0:00:05]} 18. Kxf3 {[%emt 0:01:53]} a6 {[%emt 0:08:59]} 19. Rb2 {[%emt 0:00:42]} (19. dxc5 $2 Bd7 20. Kg2 Qc8 $19) 19... Bd7 {[%emt 0:00:39]} 20. Qd1 {[%emt 0:00:17]} Na5 {[%emt 0:01:47]} 21. Be3 {[%emt 0:01:19]} (21. Rb1 $15 {is more appropriate.}) 21... Nc4 {[%emt 0:00:36]} 22. Rb1 {[%emt 0:00:15]} Be7 {[%emt 0:00:25]} 23. h4 {[%emt 0:03:08]} Rxh4 {[%emt 0:09:32] Black has more active pieces.} ({Don't do} 23... Bxh4 24. Bf2 (24. dxc5 g5 $17) 24... Qd8 25. dxc5 $18) ({Better is} 23... g6 $17 24. Bg1 Bc6) 24. Rxh4 $11 {[%emt 0:00:28]} Bxh4 {[%emt 0:00:04]} 25. Qg1 $1 {[%emt 0:01:54]} ({Of course not} 25. Bxc4 dxc4 26. Kg4 Be7 27. dxc5 O-O-O $17) 25... g6 $36 {[%emt 0:02:05][%mdl 2048] Black has the initiative. Some like it hot} 26. Bxg6 {[%emt 0:02:54][%cal Og1g4] And now Qg4! would win.} fxg6 {[%emt 0:00:39]} 27. Qxg6+ {[%emt 0:00:03]} Kd8 {[%emt 0:00:05][%cal Be8d8,Bd8e7,Be7f6][%mdl 32] Strongly threatening ...Qc6.} 28. Rh1 {[%emt 0:00:33]} Be8 {[%emt 0:00:37]} 29. Qxe6 {[%emt 0:01:30][%mdl 8192]} (29. Qh6 $11 Be7 30. Qxe6) 29... Bh5+ $19 {[%emt 0:01:12][%mdl 64] [#] Skewer, Deflection} 30. Kg2 {[%emt 0:00:01]} Nxe3+ {[%emt 0:02:50]} 31. Kh2 {[%emt 0:00:30]} Qd7 {[%emt 0:02:23]} 32. Qb6+ {[%emt 0:01:18]} Ke7 {[%emt 0:01:21]} 33. e6 {[%emt 0:01:41]} Qxe6 {[%emt 0:01:21] Black mates.} 34. Qb7+ {[%emt 0:00:06]} Kf6 {[%emt 0:00:07]} 35. Qxa8 {[%emt 0:00:34]} Ng4+ {[%emt 0:00:13] Artfully played by Lalit Babu M R.   Weighted Error Value: White=0.77/Black=0.29 (precise)} 0-1

[Event "1st Bangalore GM-Open-A 2024"]
[Site "Bangalore"]
[Date "2024.01.19"]
[Round "3.1"]
[White "Gupta, Abhijeet"]
[Black "Thejkumar, M. S."]
[Result "1/2-1/2"]
[ECO "E08"]
[WhiteElo "2605"]
[BlackElo "2372"]
[Annotator "TA"]
[PlyCount "77"]
[EventDate "2024.01.20"]
[EventType "swiss"]
[EventCountry "IND"]
[SourceTitle "playchess.com"]
[Source "ChessBase"]
[SourceQuality "1"]
[TimeControl "5400+30"]

{[%evp 19,77,59,45,47,43,50,67,29,36,36,35,31,33,33,40,33,42,44,79,14,32,32,17,19,21,20,18,20,25,8,10,0,0,0,0,0,0,0,0,0,0,0,0,0,0,0,0,0,0,0,0,0,0,0,0,0,0,0,0,0]} 1. d4 {[%emt 0:01:36]} d5 {[%emt 0:00:16]} 2. Nf3 {[%emt 0:00:30]} Nf6 {[%emt 0:00:55]} 3. c4 {[%emt 0:01:45]} e6 {[%emt 0:00:32]} 4. g3 {[%emt 0:00:24]} Be7 {[%emt 0:00:38]} 5. Bg2 {[%emt 0:00:04]} O-O {[%emt 0:00:22]} 6. Nc3 {[%emt 0:01:49]} Nbd7 {[%emt 0:04:31]} 7. Qd3 {[%emt 0:03:12]} c5 {[%emt 0:04:08]} 8. cxd5 {[%emt 0:01:35]} Nxd5 {[%emt 0:01:08]} 9. O-O {[%emt 0:01:19]} Nb4 {[%emt 0:06:07]} 10. Qd1 {[%emt 0:02:58]} Nf6 {[%emt 0:00:47]} 11. a3 {[%emt 0:01:11] E08: Closed Catalan: Main Line: 7 Qc2.} cxd4 {[%emt 0:07:33][%mdl 64] [#] Deflection} 12. Nxd4 $146 {[%emt 0:03:28][%cal Bf3d4,Bd4b5,Bb5c7][%mdl 32]} ({Predecessor:} 12. axb4 dxc3 13. bxc3 Nd5 14. Qb3 Qc7 15. Bd2 Nb6 16. Bf4 Qc4 17. Qxc4 Nxc4 18. Nd2 Nb6 {1-0 Carlsen,M (2834)-Boruchovsky,A (2542) PRO League Stage rapid 2018 (9)}) 12... e5 {[%emt 0:02:28]} 13. Ndb5 {[%emt 0:03:04] White is slightly better.} Nc6 {[%emt 0:03:44]} 14. Qxd8 {[%emt 0:02:34]} Rxd8 {[%emt 0:02:01]} 15. Bg5 {[%emt 0:02:28]} Bf5 {[%emt 0:11:53][%cal Of6d5]} 16. Rfd1 {[%emt 0:02:32]} a6 {[%emt 0:05:39]} 17. Bxf6 {[%emt 0:02:52]} gxf6 {[%emt 0:00:24]} 18. Nc7 {[%emt 0:00:50]} Rac8 {[%emt 0:10:04]} 19. Bxc6 {[%emt 0:07:51]} ({White should play} 19. N7d5 $16) 19... bxc6 {[%emt 0:04:52]} (19... Rxc7 $2 20. Nd5 Rxd5 21. Bxd5 $18) 20. Nxa6 {[%emt 0:00:05]} Rxd1+ {[%emt 0:01:46]} 21. Rxd1 {[%emt 0:00:06]} Ra8 {[%emt 0:00:12]} 22. Nb4 {[%emt 0:05:14]} Bxb4 {[%emt 0:00:12]} 23. axb4 $11 {[%emt 0:00:03][%mdl 4096] Endgame KRB-KRN} Rb8 {[%emt 0:00:39]} 24. Rd6 {[%emt 0:12:36]} Rxb4 {[%emt 0:03:03] The position is equal.} 25. Rxc6 {[%emt 0:00:17]} Rxb2 {[%emt 0:01:09]} 26. Rxf6 {[%emt 0:03:10]} Bg4 {[%emt 0:00:23]} 27. e4 {[%emt 0:14:35]} Rc2 {[%emt 0:15:51]} 28. Nd5 {[%emt 0:04:19]} Kg7 {[%emt 0:06:12] [#] And now ...Bh3 would win.} 29. Kg2 {[%emt 0:02:53][%cal Od5e3] Prevents Bh3+.} Be6 {[%emt 0:00:07] Hoping for ...Bxd5.} 30. Ne3 {[%emt 0:00:45] Threatens to win with Rxe6.} Ra2 {[%emt 0:00:24][%cal Bc2a2,Ba2a4,Ba4b4][%mdl 32]} 31. Rf3 {[%emt 0:00:21]} Ra4 {[%emt 0:00:16]} 32. Nf5+ {[%emt 0:00:04]} Bxf5 {[%emt 0:00:15]} 33. exf5 {[%emt 0:00:04] KR-KR} Kf6 {[%emt 0:00:13]} 34. h3 {[%emt 0:00:15]} h5 {[%emt 0:00:05]} 35. h4 {[%emt 0:00:15]} Rb4 {[%emt 0:00:07]} 36. Kf1 {[%emt 0:03:26]} Rb2 {[%emt 0:00:34]} 37. Kg2 {[%emt 0:00:24]} Rb4 {[%emt 0:00:06]} 38. Kf1 {[%emt 0:00:29]} Rb2 {[%emt 0:00:05]} 39. Kg2 {[%emt 0:00:04] Weighted Error Value: White=0.09 (flawless) /Black=0.03 (flawless)} 1/2-1/2

[Event "1st Bangalore GM-Open-A 2024"]
[Site "Bangalore"]
[Date "2024.01.19"]
[Round "3.2"]
[White "Short, Nigel D"]
[Black "Moksh Amit Doshi"]
[Result "1-0"]
[ECO "C86"]
[WhiteElo "2592"]
[BlackElo "2355"]
[Annotator "TA"]
[PlyCount "97"]
[EventDate "2024.01.20"]
[EventType "swiss"]
[EventCountry "IND"]
[SourceTitle "playchess.com"]
[Source "ChessBase"]
[SourceQuality "1"]
[TimeControl "5400+30"]

{[%evp 22,97,0,0,27,24,66,62,54,0,0,-7,24,-66,-45,-77,-20,-51,0,0,70,79,127,120,135,104,161,165,170,156,164,126,131,120,128,130,128,108,124,117,120,122,117,58,60,57,66,58,70,68,76,71,61,35,73,8,75,31,40,20,22,16,48,37,46,41,180,164,310,303,408,406,1034,995,1163,1154,1139,1113]} 1. e4 {[%emt 0:00:06]} e5 {[%emt 0:05:19]} 2. Nf3 {[%emt 0:00:08]} Nc6 {[%emt 0:00:06]} 3. Bb5 {[%emt 0:00:08]} a6 {[%emt 0:00:05]} 4. Ba4 {[%emt 0:00:06]} Nf6 {[%emt 0:00:07]} 5. O-O {[%emt 0:00:09]} Be7 {[%emt 0:00:04]} 6. Qe2 {[%emt 0:00:40]} b5 {[%emt 0:03:04]} 7. Bb3 {[%emt 0:00:08]} O-O {[%emt 0:00:11]} 8. c3 {[%emt 0:00:18]} d5 {[%emt 0:04:18]} 9. d3 {[%emt 0:00:16]} Bb7 {[%emt 0:07:31]} 10. Nbd2 {[%emt 0:00:24]} Re8 {[%emt 0:05:31]} 11. a3 {[%emt 0:02:54] was the old line (11.Rd1).} Bf8 {[%emt 0:04:06]} 12. Re1 {[%emt 0:01:12]} Na5 {[%emt 0:03:32] C86: Closed Ruy Lopez: Worrall Attack.} 13. Ba2 {[%emt 0:00:30]} c5 {[%emt 0:02:16]} 14. b4 $1 {[%emt 0:00:31]} cxb4 {[%emt 0:02:48] [#] White is slightly better.} 15. cxb4 $146 {[%emt 0:04:05]} ({White should try} 15. axb4 $14 Nc6 16. exd5 Nxd5 17. Ne4) ({Predecessor:} 15. axb4 Nc6 16. exd5 Ne7 17. Nxe5 Ng6 18. Ndf3 Nxd5 19. Qd2 Nxe5 20. Nxe5 f6 21. Nf3 {0-1 Munguntuul,B (2410)-Vajda,L (2568) Dunajska Streda 2018 (6)}) 15... Nc6 $11 {[%emt 0:00:49]} 16. Bb2 {[%emt 0:00:11]} h6 {[%emt 0:04:36]} 17. Rac1 {[%emt 0:06:40]} (17. exd5 $11 Nd4 18. Qd1 (18. Bxd4 exd4 19. Ne4 Nxd5 $15)) 17... d4 $15 {[%emt 0:06:18]} 18. Nb3 {[%emt 0:01:56]} Nd7 {[%emt 0:02:00]} (18... a5 $17 19. bxa5 Nxa5) 19. Rc2 {[%emt 0:08:58]} Rc8 {[%emt 0:07:45]} (19... a5 $15 20. Nc5 Bxc5 21. bxc5 b4) 20. Rec1 $11 {[%emt 0:01:00][%cal Be1c1,Bc1c2,Bc2c7][%mdl 32]} Qb6 {[%emt 0:03:26]} (20... Nb6 $11) 21. Nh4 $14 {[%emt 0:01:40]} Ne7 {[%emt 0:07:39]} (21... Nf6 $142) 22. Na5 $16 {[%emt 0:03:00]} Rxc2 {[%emt 0:01:15]} 23. Rxc2 {[%emt 0:04:38]} Bc8 {[%emt 0:06:19]} (23... Rc8 $16 {was necessary.}) 24. Qh5 $1 $18 {[%emt 0:16:29]} g6 {[%emt 0:02:42]} 25. Qf3 {[%emt 0:00:08]} Qf6 {[%emt 0:00:34]} 26. Rc7 {[%emt 0:00:12]} Bg7 {[%emt 0:03:43] [#]} 27. Nb7 $1 {[%emt 0:06:52] White has more active pieces. The black rooks are badly placed.} Bxb7 {[%emt 0:02:53]} 28. Rxb7 {[%emt 0:02:56]} Rd8 {[%emt 0:00:30]} 29. g3 {[%emt 0:01:48]} Qxf3 {[%emt 0:02:59]} 30. Nxf3 {[%emt 0:00:06]} Kf8 {[%emt 0:00:13] [#]} 31. a4 $1 {[%emt 0:06:02][%mdl 576] Deflection} bxa4 {[%emt 0:03:00]} 32. Bc4 {[%emt 0:00:07]} (32. Ra7 $16) 32... Nc8 {[%emt 0:02:36]} 33. Ba3 {[%emt 0:03:08]} Ke8 {[%emt 0:00:07] ...Nd6 would be deadly.} 34. Bxa6 {[%emt 0:00:49]} Bf8 {[%emt 0:01:40]} 35. Nd2 {[%emt 0:07:30] aiming for Nc4.} Nd6 {[%emt 0:01:17] Wards off Nc4} 36. Ra7 {[%emt 0:00:27]} Rb8 {[%emt 0:01:31]} 37. f4 {[%emt 0:01:11]} f6 {[%emt 0:01:49] [#]} 38. Kf1 {[%emt 0:00:58]} (38. Nc4 $1 $16) 38... Be7 {[%emt 0:01:52]} (38... Kd8 $11) 39. Ke2 {[%emt 0:00:07]} Nb6 {[%emt 0:01:27]} 40. fxe5 {[%emt 0:01:31]} (40. Nc4 {seems wilder.} Nbxc4 41. dxc4 Nxe4 42. c5) 40... fxe5 {[%emt 0:00:07]} 41. Nf3 {[%emt 0:00:04]} Nd7 {[%emt 0:00:37]} 42. h4 {[%emt 0:02:05]} h5 {[%emt 0:00:43]} 43. Kd1 {[%emt 0:02:12]} Bd8 {[%emt 0:01:50] [#] This costs Black the game.} (43... Kd8 $14) 44. Bc4 $1 {[%emt 0:00:23] And now Be6 would win.} Nxc4 {[%emt 0:00:35]} (44... Nb5 {was worth a try.} 45. Bxb5 (45. Rxa4 $2 Nc3+ 46. Kc2 Nxa4 $19) 45... Rxb5 46. Rxa4 Rb8) 45. dxc4 {[%emt 0:00:05]} Be7 {[%emt 0:00:23]} 46. c5 {[%emt 0:00:24]} ({Stronger than} 46. Rxa4 Nb6 47. Ra6 Nxc4 $11) 46... Bxc5 {[%emt 0:00:44]} (46... Bd8 $142 47. Rxa4 Nf6 48. Nxe5 Bc7) 47. bxc5 {[%emt 0:00:07][%cal Bb4c5,Bc5c6][%mdl 32] c6 would kill now. White is clearly winning.} Rb3 {[%emt 0:00:04] Prevents c6.} 48. c6 {[%emt 0:00:23]} Nb6 {[%emt 0:00:04]} 49. Bc5 {[%emt 0:00:24] Weighted Error Value: White=0.15 (very precise) /Black=0.32} ({Less strong is} 49. Nxe5 Rxa3 50. Rb7 (50. Nxg6 Rd3+ 51. Ke1 Rxg3 $14) 50... Nc8 $18) 1-0